Cogmind - Beta 10.2 @@@ ROGUE MODE // 2021.03.16 @ 10:12:35 Player: MoonDog Result: Destroyed by Y-45 Defender with Heavy Assault Rifle Performance ------------- Evolutions (1) 500 Regions Visited (2) 400 Robots Destroyed (7) 35 Value Destroyed (156) 156 Prototype IDs (1) 20 Alien Tech Used (0) 0 Bonus (24) 24 TOTAL SCORE: 1135 Bonus ------- High Alert Combat Kills 24 Cogmind --------- Core Integrity 0/400 Matter 280/300 Energy 84/100 System Corruption 0% Temperature Cool (9) Movement Core (50) Location -9/Materials Parts ------- > --- POWER (1) -------- (None) > --- PROPULSION (2) --- Cesium-ion Thruster > --- UTILITY (4) ------ Visual Processing Unit Improved Signal Interpreter Hacking Suite > --- WEAPON (2) ------- Maul > --- INVENTORY (4) ---- Light Ion Engine Small Storage Unit Light Armor Plating Peak State ------------ > --- POWER ------------ (None) > --- PROPULSION ------- Cesium-ion Thruster > --- UTILITY ---------- Visual Processing Unit Improved Signal Interpreter Hacking Suite > --- WEAPON ----------- Maul > --- INVENTORY -------- Light Ion Engine Small Storage Unit Light Armor Plating [Rating: 12] Favorites ----------- Power Light Ion Engine Engine Light Ion Engine Propulsion Wheel Wheel Wheel Flight Unit Cesium-ion Thruster Utility Visual Processing Unit Device Sensor Array Processor Visual Processing Unit Hackware Hacking Suite Protection Light Armor Plating Weapon EM Pulse Gun Energy Gun EM Pulse Gun Impact Weapon Maul Build | -11 -10 -9 ------- Run | Scr Mat Mat Slots Evolved 2 | . . 2 Power . | . . . Propulsion . | . . . Utility 2 | . . 2 Weapon . | . . . Parts Attached 14 | 2 1 11 Power 1 | . . 1 Engine 1 | . . 1 Core . | . . . Reactor . | . . . Propulsion 2 | 1 . 1 Treads . | . . . Leg . | . . . Wheel 1 | 1 . . Hover . | . . . Flight 1 | . . 1 Utility 6 | . 1 5 Device 1 | . . 1 Storage . | . . . Processor 3 | . . 3 Hackware 1 | . . 1 Protection 1 | . 1 . Artifact . | . . . Weapon 5 | 1 . 4 Energy Gun 3 | 1 . 2 Energy Cannon . | . . . Ballistic Gun . | . . . Ballistic Cannon . | . . . Launcher . | . . . Special Weapon . | . . . Impact Weapon 2 | . . 2 Slashing Weapon . | . . . Piercing Weapon . | . . . Special Melee Weapon . | . . . Unidentified Prototypes 1 | . . 1 Parts Lost 2 | . . 2 Power . | . . . Propulsion 1 | . . 1 Utility . | . . . Weapon 1 | . . 1 Highest Loss Streak 1 | . . 1 Average Slot Usage (%) 40 | . 28 43 Wheel 9 | . 14 9 Device 1 | . . 2 Processor 19 | . . 23 Protection 1 | . 10 . Energy Gun 4 | . 4 4 Impact Weapon 2 | . . 2 Naked Turns . | . . . Heaviest Build 5 | 2 3 5 Greatest Support 3 | 3 3 3 Greatest Overweight (x) 1 | . . 1 Average Overweight (x) . | . . . Largest Inventory Capacity 4 | 4 4 4 Average Capacity 4 | 4 4 4 Most Carried 4 | 2 4 4 Average Carried 3 | 1 3 3 Final Capacity 4 | 4 4 4 Final Carried 4 | 2 4 3 Class Distribution -------------------- 82% | Mutant 17% | Scout Dominant Class ---------------- Mutant | -10/Materials Mutant | -9/Materials Resources | -11 -10 -9 ----------- Run | Scr Mat Mat Matter Collected 310 | 200 . 110 Remotely . | . . . Salvage Created 236 | 65 . 171 Parts 11 | 1 . 10 Haulers Intercepted . | . . . Recyclers Shooed . | . . . Parts Field Recycled . | . . . Retrieved Matter . | . . . Parts Self-Destructed . | . . . Prevented . | . . . Kills | -11 -10 -9 ------- Run | Scr Mat Mat Combat Hostiles Destroyed 3 | . . 3 Melee 3 | . . 3 Classes Destroyed 4 | 1 . 3 Recycler 1 | 1 . . Operator 2 | . . 2 Watcher 1 | . . 1 Grunt 3 | . . 3 Best Kill Streak 2 | 1 . 2 Combat Bots Only 2 | . . 2 Max Kills in Single Turn 1 | 1 . 1 Gunslinging . | . . . Exploded . | . . . Melee 1 | . . 1 Uniques/NPCs Destroyed . | . . . Combat | -11 -10 -9 -------- Run | Scr Mat Mat Damage Taken 534 | . 15 519 Core 400 | . . 400 Absorbed by Shields . | . . . Core Remaining (%) 100 | 100 100 . Volleys Fired 7 | 4 . 3 Largest 1 | 1 . 1 Hottest 56 | 40 . 56 Shots Fired 7 | 4 . 3 Gun 7 | 4 . 3 Cannon . | . . . Launcher . | . . . Special . | . . . Kinetic . | . . . Thermal 2 | . . 2 Explosive . | . . . Electromagnetic 5 | 4 . 1 Robot Hit Streak 3 | 1 . 3 Robot Miss Streak 2 | 2 . . Penetration Max . | . . . Secondary Targets . | . . . Shots Hit Robots 14 | 1 . 13 Core Hits 7 | 1 . 6 Critical Hits . | . . . Critical Kills . | . . . Critical Parts Destroyed . | . . . Melee Attacks 14 | . . 14 Impact 14 | . . 14 Slashing . | . . . Piercing . | . . . Sneak Attacks 2 | . . 2 Combat Hostiles 1 | . . 1 Follow-up Attacks . | . . . Damage Inflicted 459 | 30 . 429 Guns 78 | 30 . 48 Cannons . | . . . Explosions . | . . . Melee 381 | . . 381 Ramming . | . . . Kinetic . | . . . Thermal 33 | . . 33 Explosive . | . . . Electromagnetic 45 | 30 . 15 Impact 381 | . . 381 Slashing . | . . . Piercing . | . . . Highest Corruption . | . . . Average Corruption . | . . . Corruption Purged . | . . . Overload Shots . | . . . Overflow Damage . | . . . Projectiles . | . . . Explosions . | . . . Melee . | . . . Knockbacks 1 | . . 1 Impact 1 | . . 1 Kinetic . | . . . Secondary . | . . . Self-Inflicted Damage . | . . . Shots . | . . . Rammed . | . . . Targets Rammed . | . . . Kicked . | . . . Crushed . | . . . Highest Temperature 28 | . . 28 Average Temperature 28 | . . 28 Received Heat Transfer 198 | . . 198 Siege Activations . | . . . Robots Corrupted . | . . . Combat Hostiles . | . . . Parts Fried . | . . . Impact Corruptions . | . . . Robots Melted . | . . . Combat Hostiles . | . . . Parts Melted . | . . . Heat Transferred 74 | . . 74 Parts Sabotaged . | . . . Parts Stolen . | . . . Parts Stripped . | . . . Power Chain Reactions . | . . . Missiles Intercepted . | . . . Alert | -11 -10 -9 ------- Run | Scr Mat Mat Peak Influence 498 | 5 37 498 Initial 15 | . 3 15 Average 192 | 1 15 247 Maximum Alert Level 2 | . . 2 Low Security (%) 63 | 100 100 52 Level 1 16 | . . 21 Level 2 19 | . . 25 Level 3 . | . . . Level 4 . | . . . Level 5 . | . . . High Security . | . . . Max Security . | . . . Squads Dispatched 4 | . . 4 Investigation 2 | . . 2 Extermination . | . . . Reinforcement 2 | . . 2 Assault . | . . . Garrison . | . . . Intercept . | . . . Construction Impeded . | . . . Haulers Reinforced . | . . . Stealth | -11 -10 -9 --------- Run | Scr Mat Mat Distress Signals 2 | . . 2 Communications Jammed . | . . . Distress Signals . | . . . Times Spotted 31 | . 2 29 Peak Tracking Total 10 | . 2 10 Tactical Retreats 8 | . . 8 Traps | -11 -10 -9 ------- Run | Scr Mat Mat Traps Triggered 3 | . 1 2 Indirectly . | . . . Trap Hack Attempts . | . . . Triggered . | . . . Disarmed . | . . . Reprogrammed . | . . . Reused . | . . . Traps Extracted . | . . . Installed . | . . . Triggered . | . . . Machines | -11 -10 -9 ---------- Run | Scr Mat Mat Machines Disabled . | . . . Max in Single Turn . | . . . Machines Sabotaged . | . . . Garrisons Compromised . | . . . Overloaded Fab Kills . | . . . Fab Network Shutdowns . | . . . Hacking | -11 -10 -9 --------- Run | Scr Mat Mat Machines Accessed 5 | . 2 3 Terminals 5 | . 2 3 Fabricators . | . . . Repair Stations . | . . . Recycling Units . | . . . Scanalyzers . | . . . Garrison Access . | . . . Total Hacks 23 | . 8 15 Successful 10 | . 3 7 Failed 13 | . 5 8 Catastrophic . | . . . Database Lockouts . | . . . Manual 20 | . 8 12 Terminals 23 | . 8 15 Fabricators . | . . . Repair Stations . | . . . Recycling Units . | . . . Scanalyzers . | . . . Garrison Access . | . . . Terminal Hacks 2 | . . 2 Record 1 | . . 1 Zone Layout 1 | . . 1 Fabricator Hacks . | . . . Repair Station Hacks . | . . . Recycling Unit Hacks . | . . . Scanalyzer . | . . . Garrison Access Hacks . | . . . Unauthorized Hacks 7 | . 3 4 Terminals 7 | . 3 4 Track 1 | . . 1 Botnet 4 | . 2 2 Operators 2 | . 1 1 Fabricators . | . . . Repair Stations . | . . . Recycling Units . | . . . Scanalyzers . | . . . Garrison Access . | . . . Data Cores Recovered . | . . . Used . | . . . Hacking Detections 5 | . 2 3 Full Trace Events . | . . . Feedback Events . | . . . Feedback Blocked . | . . . Robot Schematics Acquired . | . . . Robots Built . | . . . Matter . | . . . Time . | . . . Total Robot Build Rating . | . . . Part Schematics Acquired . | . . . Parts Built . | . . . Matter . | . . . Time . | . . . Total Part Build Rating . | . . . Parts Repaired . | . . . Time . | . . . Parts Recycled . | . . . Recycled Matter . | . . . Retrieved Matter . | . . . Retrieved Components . | . . . Parts Scanalyzed . | . . . Part Schematics Acquired . | . . . Parts Damaged . | . . . Bothacking | -11 -10 -9 ------------ Run | Scr Mat Mat Used RIF Installer . | . . . Robots Hacked . | . . . Non-combat . | . . . Combat . | . . . Robot Hacks Applied . | . . . Relay Couplers Released . | . . . Robots Rewired . | . . . Allies Hacked . | . . . Hacks Repelled . | . . . Allies | -11 -10 -9 -------- Run | Scr Mat Mat Total Allies . | . . . Largest Group . | . . . Highest-Rated Group . | . . . Highest-Rated Ally . | . . . Total Orders . | . . . Ally Attacks . | . . . Total Damage . | . . . Kills . | . . . Allies Corrupted . | . . . Allies Melted . | . . . Intel | -11 -10 -9 ------- Run | Scr Mat Mat Robot Analysis Total . | . . . Derelict Logs Recovered . | . . . Drone Launches . | . . . Drone Recoveries . | . . . Exploration | -11 -10 -9 ------------- Run | Scr Mat Mat Turns Passed 455 | 36 70 349 Spaces Moved 676 | 47 119 510 Core 676 | 47 119 510 Treads . | . . . Legs . | . . . Wheels . | . . . Hover . | . . . Flight . | . . . Fastest Speed 50 | 50 50 50 Average Speed 50 | 50 50 50 Slowest Speed 100 | 50 50 100 Overloaded Moves . | . . . Propulsion Burnouts . | . . . Robots Hopped . | . . . Cave-ins Triggered . | . . . Exploration Rate (%) 25 | 4 31 41 Regions Visited 2 Branch Regions . Pre-discovered Areas . | . . . Known Exits Taken . | . . . Unknown Exits Taken 2 | 1 1 . Scrap Searched . | . . . Spaces Dug 1 | . . 1 Terrain Destroyed 1 | . . 1 Melee 1 | . . 1 Projectile . | . . . AOE . | . . . Terrain Rammed . | . . . Walls Destroyed . | . . . Machines Disabled . | . . . Actions | -11 -10 -9 --------- Run | Scr Mat Mat Total 754 | 54 128 572 Wait 34 | . 7 27 Move 674 | 46 118 510 Hop . | . . . Pick Up 3 | 2 1 . Fast Attach 11 | 2 1 8 Attach 3 | . . 3 Detach 5 | . 1 4 Swap . | . . . Drop 3 | . . 3 Fire 7 | 4 . 3 Melee 14 | . . 14 Ram . | . . . Kick . | . . . Crush . | . . . Escape Stasis . | . . . Rewire . | . . . Trap . | . . . Miscellaneous . | . . . Route ------- -11/Scrapyard -10/Materials -9/Materials (discovered 1 exit: *Mat) History --------- Turn | Location | Event 12 | -11/Scrapyard | Discovered new exit (range 15) 37 | -11/Scrapyard | Entered Materials 99 | -10/Materials | Discovered new exit (range 15) 107 | -10/Materials | Entered another Materials area 107 | -9/Materials | Evolved 2 slots: Utility x2 243 | -9/Materials | Discovered new exit (range 17) 252 | -9/Materials | Identified exit to Materials 397 | -9/Materials | Core integrity fell below 50% 454 | -9/Materials | Core integrity fell below 20% 456 | -9/Materials | Destroyed by Y-45 Defender with Heavy Assault Rifle Last Messages --------------- 00312_ W-16 Scout sends out distress signal. 00319_ ALERT: Hostiles spotted, dispatching reinforcements to Terminal M008. 00338_ Acquired Maul. 00362_ Dropped Sensor Array. 00363_ Sneak attack on G-34 Mercenary. 00366_ G-34 Mercenary destroyed. 00385_ G-34 Mercenary knocked back. 00393_ Wheel destroyed. 00403_ G-34 Mercenary destroyed. 00405_ Acquired 26 matter. 00427_ K-01 Serf cleans the Electrolysis Chamber. 00440_ Triggered Alarm Trap. 00440_ An alarm sounds. 00440_ ALERT: Alarm triggered, dispatching investigation squad. 00445_ Sneak attack on O-16 Technician. 00445_ O-16 Technician destroyed. 00448_ Acquired Hacking Suite. 00451_ R-06 Scavenger collects Hover Unit. 00455_ Acquired Cesium-ion Thruster. Map ----- +----------------------------------------------------+ | | | | | | | | | | | | | | | ???????????????????????????????? | | ????????????????????#####??????? | | ????????????????????""" #??????? | | ????????????????????""" #??????? | | ????????????????????""" #??????? | | ???????????????????? #??????? | | ???????????????????? #??????? | | ???????????????????? #??????? | | ???????????????????? #??????? | | ???????????????????? #??????? | | ????????????????????###?#??????? | | ???????##+######???? ## #??????? | | ???????? ????? ## #??????? | | ????????? ?????? ##?######## | | ?????##### #??????? # # | | ?????#** Y#???###### ""# | | ?????#** ##### # T"# | | ?????#== s /% # """ ""# | | ?????#=@ s Y + """ # | | ?????#[[ #####+##! # """ # | | ?????#[[ #??????## ## # | | ?????#####???????# ## # | | ?????????# "" ## ############ | | ??????????# T" + | | ??????????# "" ## | | ?????????????????## ############ | | ??????????????????# #??????????? | | ??????????????????# #?########## | | ??????????????????# #?# | | ??????????????????# #?# | | ??????????????????# ### | | ?????????????????? ??????????? | | ?????????????????? ??????????? | | ?????????????????? T ??????????? | | ?????????????????? ??????????? | | ?????????????????? ??????????? | | ?????????????????? ??????????? | | ?????????????????? ??????????? | | ?????????????????? ? ??????????? | | ?????????????????? ? ??????????? | | ???????????????????????????????? | | ???????????????????????????????? | | ???????????????????????????????? | +----------------------------------------------------+ Best States ------------- Heat Dissipation 28 Energy Generation 5 Energy Capacity 125 Matter Stores 300 Matter Capacity 300 Sight Range 18 Robot Scan Range 10 Terrain Scan Density 10 Armor Coverage 150 Evasion (%) 50 Offensive Hacking 10 Item Schematics ----------------- None Robot Schematics ------------------ None Fabricated ------------ Nothing Alien Tech Used ----------------- None Achievements -------------- None Challenges ------------ None Game ------ Seed CombatDecoderUnit Manual? 0 Play Time 00:08:31 Cumulative 122.3 hours Start 2021.03.16 @ 09:31:48 End 2021.03.16 @ 10:12:35 Sessions 1 Manual Loads 0 Difficulty Rogue Special Mode None Game No. 103 Rogue 103 Adventurer 0 Explorer 0 Win Type - Total 1 Types 1/0/0/0/0/0/0/0/0 Lore% 41 Gallery% 59 Achievement% 46 Wizard Run 0 Options --------- ASCII 0 Keyboard 0 Movement Numpad Keybinds 0 Fullscreen 0 Font 14/Cog Map View 76x50 Tactical HUD 1 Map Filters NONE Filters NONE Steam 1 RUN: 9c079a7b-ee89-46c4-8e3a-46aa401b5652